fUST/lending_fUST_20260627
["ID","MTS","AMOUNT","RATE_DAILY","PERIOD"]
[426509223,1782493840000,-1000.0,0.00039096,120]
[426509258,1782493840000,-274.261422,0.0003932,120]
[426509229,1782493840000,-290.411795,0.00039096,120]
[426509234,1782493840000,-151.0,0.00039219,120]
[426509237,1782493840000,-227.310792,0.00039219,120]
[426509231,1782493840000,-151.0,0.00039219,120]
[426509235,1782493840000,-151.0,0.00039219,120]
[426509230,1782493840000,-3448.26275888,0.00039097,2]
[426509240,1782493840000,-485.39412308,0.00039244,2]
[426509245,1782493840000,-151.0,0.00039311,120]
[426509239,1782493840000,-176.3736459,0.00039219,2]
[426509241,1782493840000,-389.04,0.00039311,3]
[426509244,1782493840000,-151.0,0.00039311,120]
[426509243,1782493840000,-151.0,0.00039311,120]
[426509246,1782493840000,-500.0,0.00039311,120]
[426509249,1782493840000,-500.0,0.00039311,120]
[426509232,1782493840000,-151.0,0.00039219,120]
[426509287,1782493840000,-207.110183,0.00039321,120]
[426509285,1782493840000,-254.905233,0.00039321,120]
[426509356,1782493840000,-151.0,0.00039321,120]
[426509343,1782493840000,-151.153071,0.00039321,120]
[426509331,1782493840000,-285.785656,0.00039321,120]
[426509333,1782493840000,-285.785656,0.00039321,120]
[426509334,1782493840000,-285.785656,0.00039321,120]
[426509340,1782493840000,-274.261422,0.00039321,120]
[426509336,1782493840000,-285.785656,0.00039321,120]
[426509338,1782493840000,-285.785656,0.00039321,120]
[426509339,1782493840000,-285.785656,0.00039321,120]
[426509341,1782493840000,-151.0,0.00039321,120]
[426509344,1782493840000,-274.261422,0.00039321,120]
[426509347,1782493840000,-274.261422,0.00039321,120]
[426509346,1782493840000,-274.261422,0.00039321,120]
[426509351,1782493840000,-274.261422,0.00039321,120]
[426509335,1782493840000,-285.785656,0.00039321,120]
[426509352,1782493840000,-274.261422,0.00039321,120]
[426509355,1782493840000,-151.0,0.00039321,120]
[426509357,1782493840000,-151.0,0.00039321,120]
[426509349,1782493840000,-274.261422,0.00039321,120]
[426509345,1782493840000,-274.261422,0.00039321,120]
[426509354,1782493840000,-274.261422,0.00039321,120]
[426509350,1782493840000,-274.261422,0.00039321,120]
[426509353,1782493840000,-151.0,0.00039321,120]
[426509359,1782493840000,-151.0,0.00039321,120]
[426509358,1782493840000,-151.0,0.00039321,120]
[426509360,1782493840000,-151.0,0.00039321,120]
[426509361,1782493840000,-151.0,0.00039321,120]
[426509293,1782493840000,-207.110183,0.00039321,120]
[426509362,1782493840000,-151.0,0.00039321,120]
[426509348,1782493840000,-274.261422,0.00039321,120]
[426509342,1782493840000,-274.261422,0.00039321,120]
[426509337,1782493840000,-285.785656,0.00039321,120]
[426509329,1782493840000,-285.785656,0.00039321,120]
[426509289,1782493840000,-270.265093,0.00039321,120]
[426509279,1782493840000,-207.110183,0.00039321,120]
[426509295,1782493840000,-270.265093,0.00039321,120]
[426509297,1782493840000,-207.110183,0.00039321,120]
[426509299,1782493840000,-207.110183,0.00039321,120]
[426509301,1782493840000,-270.265093,0.00039321,120]
[426509305,1782493840000,-207.110183,0.00039321,120]
[426509315,1782493840000,-270.265093,0.00039321,120]
[426509312,1782493840000,-270.265093,0.00039321,120]
[426509332,1782493840000,-285.785656,0.00039321,120]
[426509316,1782493840000,-207.110183,0.00039321,120]
[426509313,1782493840000,-270.265093,0.00039321,120]
[426509307,1782493840000,-270.265093,0.00039321,120]
[426509309,1782493840000,-207.110183,0.00039321,120]
[426509311,1782493840000,-207.110183,0.00039321,120]
[426509303,1782493840000,-270.265093,0.00039321,120]
[426509318,1782493840000,-270.265093,0.00039321,120]
[426509328,1782493840000,-285.785656,0.00039321,120]
[426509314,1782493840000,-207.110183,0.00039321,120]
[426509324,1782493840000,-151.0,0.00039321,120]
[426509323,1782493840000,-151.0,0.00039321,120]
[426509326,1782493840000,-151.0,0.00039321,120]
[426509321,1782493840000,-151.0,0.00039321,120]
[426509330,1782493840000,-285.785656,0.00039321,120]
[426509325,1782493840000,-151.0,0.00039321,120]
[426509320,1782493840000,-270.265093,0.00039321,120]
[426509322,1782493840000,-270.265093,0.00039321,120]
[426509317,1782493840000,-207.110183,0.00039321,120]
[426509327,1782493840000,-151.0,0.00039321,120]
[426509404,1782493841000,-314.004406,0.00039321,2]
[426509398,1782493841000,-314.00441,0.00039321,2]
[426509407,1782493841000,-151.0,0.00039321,120]
[426509411,1782493841000,-151.0,0.00039321,120]
[426509402,1782493841000,-314.00441,0.00039321,2]
[426509400,1782493841000,-314.00441,0.00039321,2]
[426509403,1782493841000,-314.00441,0.00039321,2]
[426509397,1782493841000,-314.00441,0.00039321,2]
[426509392,1782493841000,-193.562734,0.00039321,120]
[426509393,1782493841000,-314.00441,0.00039321,2]
[426509408,1782493841000,-151.0,0.00039321,120]
[426509405,1782493841000,-261.690081,0.00039321,120]
[426509410,1782493841000,-151.0,0.00039321,120]
[426509420,1782493841000,-270.265093,0.00039322,120]
[426509409,1782493841000,-151.0,0.00039321,120]
[426509406,1782493841000,-151.0,0.00039321,120]
[426509413,1782493841000,-500.0,0.00039321,120]
[426509423,1782493841000,-207.110183,0.00039322,120]
[426509414,1782493841000,-500.0,0.00039321,120]
[426509412,1782493841000,-228.284776,0.00039321,120]
[426509416,1782493841000,-500.0,0.00039321,120]
[426509417,1782493841000,-151.0,0.00039321,120]
[426509415,1782493841000,-500.0,0.00039321,120]
[426509422,1782493841000,-270.265093,0.00039322,120]
[426509419,1782493841000,-207.110183,0.00039322,120]
[426509421,1782493841000,-207.110183,0.00039322,120]
[426509391,1782493841000,-151.0,0.00039321,120]
[426509401,1782493841000,-314.00441,0.00039321,2]
[426509395,1782493841000,-314.00441,0.00039321,2]
[426509363,1782493841000,-229.348001,0.00039321,120]
[426509396,1782493841000,-314.00441,0.00039321,2]
[426509364,1782493841000,-151.0,0.00039321,120]
[426509366,1782493841000,-151.0,0.00039321,120]
[426509370,1782493841000,-421.240594,0.00039321,120]
[426509372,1782493841000,-421.240594,0.00039321,120]
[426509371,1782493841000,-421.240594,0.00039321,120]
[426509374,1782493841000,-421.240594,0.00039321,120]
[426509365,1782493841000,-151.0,0.00039321,120]
[426509373,1782493841000,-421.240594,0.00039321,120]
[426509368,1782493841000,-421.240594,0.00039321,120]
[426509367,1782493841000,-421.240594,0.00039321,120]
[426509369,1782493841000,-421.240594,0.00039321,120]
[426509375,1782493841000,-297.895586,0.00039321,120]
[426509378,1782493841000,-297.895586,0.00039321,120]
[426509394,1782493841000,-314.00441,0.00039321,2]
[426509379,1782493841000,-421.240594,0.00039321,120]
[426509386,1782493841000,-297.895586,0.00039321,120]
[426509377,1782493841000,-421.240594,0.00039321,120]
[426509380,1782493841000,-421.240594,0.00039321,120]
[426509383,1782493841000,-297.895586,0.00039321,120]
[426509382,1782493841000,-421.240594,0.00039321,120]
[426509385,1782493841000,-297.895586,0.00039321,120]
[426509381,1782493841000,-297.895586,0.00039321,120]
[426509384,1782493841000,-297.895586,0.00039321,120]
[426509387,1782493841000,-297.895586,0.00039321,120]
[426509389,1782493841000,-297.895586,0.00039321,120]
[426509399,1782493841000,-314.00441,0.00039321,2]
[426509388,1782493841000,-297.895586,0.00039321,120]
[426509390,1782493841000,-297.895586,0.00039321,120]
[426509376,1782493841000,-297.895586,0.00039321,120]
[426509418,1782493841000,-151.0,0.00039321,120]
[426509429,1782493841000,-285.785656,0.00039322,120]
[426509426,1782493841000,-270.265093,0.00039322,120]
[426509456,1782493841000,-445.0,0.00039855,2]
[426509460,1782493841000,-1998.68336954,0.0004,120]
[426509457,1782493841000,-500.0,0.0004,120]
[426509461,1782493841000,-151.0,0.0004,120]
[426509464,1782493841000,-270.265093,0.000402,120]
[426509474,1782493841000,-285.785656,0.000402,120]
[426509475,1782493841000,-285.785651,0.000402,120]
[426509463,1782493841000,-207.110183,0.000402,120]
[426509466,1782493841000,-270.265093,0.000402,120]
[426509465,1782493841000,-207.110183,0.000402,120]
[426509471,1782493841000,-151.0,0.000402,120]
[426509467,1782493841000,-207.110183,0.000402,120]
[426509468,1782493841000,-270.265093,0.000402,120]
[426509472,1782493841000,-285.785656,0.000402,120]
[426509473,1782493841000,-285.785656,0.000402,120]
[426509470,1782493841000,-270.265084,0.000402,120]
[426509469,1782493841000,-207.110184,0.000402,120]
[426509476,1782493841000,-151.0,0.000402,120]
[426509478,1782493841000,-237.308668,0.000402,120]
[426509480,1782493841000,-151.0,0.000402,120]
[426509424,1782493841000,-270.265093,0.00039322,120]
[426509481,1782493841000,-151.0,0.000402,120]
[426509477,1782493841000,-151.0,0.000402,120]
[426509479,1782493841000,-151.0,0.000402,120]
[426509483,1782493841000,-500.0,0.000402,120]
[426509484,1782493841000,-500.0,0.000402,120]
[426509485,1782493841000,-500.0,0.000402,120]
[426509455,1782493841000,-186.0,0.00039855,2]
[426509459,1782493841000,-1587.0,0.0004,120]
[426509482,1782493841000,-500.0,0.000402,120]
[426509462,1782493841000,-500.73552806,0.00040158,15]
[426509458,1782493841000,-2000.0,0.0004,120]
[426509427,1782493841000,-151.0,0.00039322,120]
[426509436,1782493841000,-274.261413,0.00039322,120]
[426509428,1782493841000,-151.522691,0.00039322,120]
[426509430,1782493841000,-285.785656,0.00039322,120]
[426509425,1782493841000,-207.110183,0.00039322,120]
[426509434,1782493841000,-274.261422,0.00039322,120]
[426509431,1782493841000,-285.785656,0.00039322,120]
[426509432,1782493841000,-285.785656,0.00039322,120]
[426509433,1782493841000,-274.261422,0.00039322,120]
[426509438,1782493841000,-151.0,0.00039322,120]
[426509448,1782493841000,-297.895584,0.00039322,120]
[426509437,1782493841000,-151.0,0.00039322,120]
[426509450,1782493841000,-9998.45615017,0.00039422,2]
[426509435,1782493841000,-274.261422,0.00039322,120]
[426509440,1782493841000,-151.0,0.00039322,120]
[426509449,1782493841000,-798.0,0.000394,2]
[426509452,1782493841000,-300.0,0.00039772,65]
[426509454,1782493841000,-2213.0,0.00039855,2]
[426509451,1782493841000,-160.0,0.00039433,2]
[426509447,1782493841000,-297.895586,0.00039322,120]
[426509443,1782493841000,-421.240594,0.00039322,120]
[426509453,1782493841000,-1843.0,0.00039855,2]
[426509445,1782493841000,-421.240602,0.00039322,120]
[426509444,1782493841000,-297.895586,0.00039322,120]
[426509441,1782493841000,-421.240594,0.00039322,120]
[426509439,1782493841000,-151.0,0.00039322,120]
[426509442,1782493841000,-421.240594,0.00039322,120]
[426509446,1782493841000,-297.895586,0.00039322,120]
[426509523,1782493842000,-1172.40937259,0.00040299,31]
[426509515,1782493842000,-1172.40937259,0.00040299,31]
[426509513,1782493842000,-1172.40937259,0.00040299,31]
[426509514,1782493842000,-1172.40937259,0.00040299,31]
[426509512,1782493842000,-1172.40937259,0.00040299,31]
[426509521,1782493842000,-1172.40937259,0.00040299,31]
[426509516,1782493842000,-1172.40937259,0.00040299,31]
[426509522,1782493842000,-1172.40937259,0.00040299,31]
[426509517,1782493842000,-1172.40937259,0.00040299,31]
[426509520,1782493842000,-1172.40937259,0.00040299,31]
[426509526,1782493842000,-1172.40937259,0.00040299,31]
[426509519,1782493842000,-1172.40937259,0.00040299,31]
[426509524,1782493842000,-1172.40937259,0.00040299,31]
[426509527,1782493842000,-1172.40937259,0.00040299,31]
[426509525,1782493842000,-1172.40937259,0.00040299,31]
[426509535,1782493842000,-1172.40937259,0.00040299,31]
[426509531,1782493842000,-1172.40937259,0.00040299,31]
[426509528,1782493842000,-1172.40937259,0.00040299,31]
[426509530,1782493842000,-1172.40937259,0.00040299,31]
[426509503,1782493842000,-1172.40937259,0.00040299,31]
[426509518,1782493842000,-1172.40937259,0.00040299,31]
[426509507,1782493842000,-1172.40937259,0.00040299,31]
[426509499,1782493842000,-387.42490525,0.00040299,31]
[426509511,1782493842000,-1172.40937259,0.00040299,31]
[426509488,1782493842000,-167.0,0.00040274,90]
[426509487,1782493842000,-5000.0,0.00040241,30]
[426509486,1782493842000,-151.0,0.000402,120]
[426509490,1782493842000,-151.0,0.00040299,120]
[426509500,1782493842000,-387.64692252,0.00040299,31]
[426509489,1782493842000,-151.0,0.00040299,120]
[426509495,1782493842000,-500.0,0.00040299,120]
[426509493,1782493842000,-151.0,0.00040299,120]
[426509491,1782493842000,-151.0,0.00040299,120]
[426509492,1782493842000,-151.0,0.00040299,120]
[426509494,1782493842000,-500.0,0.00040299,120]
[426509498,1782493842000,-151.0,0.00040299,120]
[426509496,1782493842000,-500.0,0.00040299,120]
[426509497,1782493842000,-500.0,0.00040299,120]
[426509501,1782493842000,-1172.40937259,0.00040299,31]
[426509502,1782493842000,-1172.40937259,0.00040299,31]
[426509506,1782493842000,-1172.40937259,0.00040299,31]
[426509509,1782493842000,-1172.40937259,0.00040299,31]
[426509504,1782493842000,-1172.40937259,0.00040299,31]
[426509510,1782493842000,-1172.40937259,0.00040299,31]
[426509505,1782493842000,-1172.40937259,0.00040299,31]
[426509508,1782493842000,-1172.40937259,0.00040299,31]
[426509529,1782493842000,-1172.40937259,0.00040299,31]
[426509532,1782493842000,-1172.40937259,0.00040299,31]
[426509534,1782493842000,-1172.40937259,0.00040299,31]
[426509557,1782493842000,-1172.40937259,0.00040299,31]
[426509563,1782493842000,-1172.40937259,0.00040299,31]
[426509562,1782493842000,-1172.40937259,0.00040299,31]
[426509565,1782493842000,-1055.16843532,0.00040299,31]
[426509566,1782493842000,-1055.16843532,0.00040299,31]
[426509564,1782493842000,-1172.40937259,0.00040299,31]
[426509570,1782493842000,-1055.16843532,0.00040299,31]
[426509569,1782493842000,-1055.16843532,0.00040299,31]
[426509571,1782493842000,-1055.16843529,0.00040299,31]
[426509572,1782493842000,-183.27167107,0.00040299,31]
[426509567,1782493842000,-1055.16843532,0.00040299,31]
[426509573,1782493842000,-500.0,0.00040299,31]
[426509574,1782493842000,-222.20471873,0.00040299,31]
[426509576,1782493842000,-616.81,0.00040299,2]
[426509575,1782493842000,-487.0,0.00040299,2]
[426509577,1782493842000,-538316.61180406,0.000403,2]
[426509578,1782493842000,-140451.15738837,0.000403,2]
[426509579,1782493842000,-144963.85936758,0.000403,2]
[426509580,1782493842000,-35874.3921675,0.000403,2]
[426509581,1782493842000,-117046.03263345,0.000403,2]
[426509533,1782493842000,-1172.40937259,0.00040299,31]
[426509558,1782493842000,-1172.40937259,0.00040299,31]
[426509556,1782493842000,-1172.40937259,0.00040299,31]
[426509568,1782493842000,-1055.16843532,0.00040299,31]
[426509561,1782493842000,-1172.40937259,0.00040299,31]
[426509536,1782493842000,-1172.40937259,0.00040299,31]
[426509538,1782493842000,-1172.40937259,0.00040299,31]
[426509547,1782493842000,-1172.40937259,0.00040299,31]
[426509543,1782493842000,-1172.40937259,0.00040299,31]
[426509544,1782493842000,-1172.40937259,0.00040299,31]
[426509546,1782493842000,-1172.40937259,0.00040299,31]
[426509540,1782493842000,-1172.40937259,0.00040299,31]
[426509539,1782493842000,-1172.40937259,0.00040299,31]
[426509541,1782493842000,-1172.40937259,0.00040299,31]
[426509555,1782493842000,-1172.40937259,0.00040299,31]
[426509545,1782493842000,-1172.40937259,0.00040299,31]
[426509542,1782493842000,-1172.40937259,0.00040299,31]
[426509548,1782493842000,-1172.40937259,0.00040299,31]
[426509549,1782493842000,-1172.40937259,0.00040299,31]
[426509552,1782493842000,-1172.40937259,0.00040299,31]
[426509551,1782493842000,-1172.40937259,0.00040299,31]
[426509553,1782493842000,-1172.40937259,0.00040299,31]
[426509554,1782493842000,-1172.40937259,0.00040299,31]
[426509550,1782493842000,-1172.40937259,0.00040299,31]
[426509559,1782493842000,-1172.40937259,0.00040299,31]
[426509560,1782493842000,-1172.40937259,0.00040299,31]
[426509537,1782493842000,-1172.40937259,0.00040299,31]
[426509601,1782493843000,-1206.314753,0.00039,120]
[426509608,1782493847000,-1258.585247,0.00039,120]
[426509609,1782493847000,-1573.23128315,0.000403,2]
[426509612,1782493847000,-10543.07996144,0.000403,2]
[426509611,1782493847000,-1778.651535,0.000403,2]
[426509610,1782493847000,-8085.87981699,0.000403,2]
[426509619,1782494019000,159.024162,0.000108,2]
[426509642,1782494739000,-2512.67576675,0.00040155,28]
[426509639,1782494739000,-456.2070661,0.0004,120]
[426509636,1782494739000,-1843.0,0.00039645,2]
[426509640,1782494739000,-2512.67576679,0.00040098,28]
[426509638,1782494739000,-174.811882,0.0003997,2]
[426509635,1782494739000,-1420.0,0.00039645,2]
[426509637,1782494739000,-798.0,0.000397,2]
[426509634,1782494739000,-300.0,0.00039403,60]
[426509632,1782494739000,-1000.0,0.00038811,2]
[426509631,1782494739000,-1000.0,0.00038811,2]
[426509630,1782494739000,-287.80800758,0.00038689,3]
[426509629,1782494739000,-759.1298405,0.00038565,120]
[426509627,1782494739000,-1721.18176357,0.00038198,2]
[426509626,1782494739000,-792.2427567,0.00038098,2]
[426509628,1782494739000,-922.6089636,0.00038414,30]
[426509641,1782494739000,-517.84136726,0.00040099,12]
[426509625,1782494739000,-792.2427567,0.00038098,2]
[426509633,1782494739000,-1000.0,0.00038811,2]
[426509643,1782494739000,-300.0,0.00040193,71]
[426509663,1782494739000,-500.0,0.00040198,31]
[426509645,1782494739000,-500.0,0.00040198,31]
[426509644,1782494739000,-349.16961811,0.00040198,31]
[426509660,1782494739000,-500.0,0.00040198,31]
[426509659,1782494739000,-500.0,0.00040198,31]
[426509661,1782494739000,-500.0,0.00040198,31]
[426509658,1782494739000,-500.0,0.00040198,31]
[426509655,1782494739000,-500.0,0.00040198,31]
[426509657,1782494739000,-500.0,0.00040198,31]
[426509656,1782494739000,-500.0,0.00040198,31]
[426509662,1782494739000,-500.0,0.00040198,31]
[426509650,1782494739000,-500.0,0.00040198,31]
[426509652,1782494739000,-500.0,0.00040198,31]
[426509653,1782494739000,-500.0,0.00040198,31]
[426509651,1782494739000,-500.0,0.00040198,31]
[426509649,1782494739000,-500.0,0.00040198,31]
[426509647,1782494739000,-500.0,0.00040198,31]
[426509648,1782494739000,-500.0,0.00040198,31]
[426509646,1782494739000,-500.0,0.00040198,31]
[426509654,1782494739000,-500.0,0.00040198,31]
[426509680,1782494740000,-500.0,0.00040198,31]
[426509678,1782494740000,-500.0,0.00040198,31]
[426509677,1782494740000,-500.0,0.00040198,31]
[426509675,1782494740000,-500.0,0.00040198,31]
[426509676,1782494740000,-500.0,0.00040198,31]
[426509674,1782494740000,-500.0,0.00040198,31]
[426509672,1782494740000,-500.0,0.00040198,31]
[426509667,1782494740000,-500.0,0.00040198,31]
[426509670,1782494740000,-500.0,0.00040198,31]
[426509669,1782494740000,-500.0,0.00040198,31]
[426509668,1782494740000,-500.0,0.00040198,31]
[426509666,1782494740000,-500.0,0.00040198,31]
[426509665,1782494740000,-500.0,0.00040198,31]
[426509664,1782494740000,-500.0,0.00040198,31]
[426509681,1782494740000,-500.0,0.00040198,31]
[426509671,1782494740000,-500.0,0.00040198,31]
[426509679,1782494740000,-500.0,0.00040198,31]
[426509673,1782494740000,-500.0,0.00040198,31]
[426509682,1782494740000,-500.0,0.00040198,31]
[426509698,1782494740000,-500.0,0.00040198,31]
[426509697,1782494740000,-500.0,0.00040198,31]
[426509696,1782494740000,-500.0,0.00040198,31]
[426509695,1782494740000,-500.0,0.00040198,31]
[426509693,1782494740000,-500.0,0.00040198,31]
[426509691,1782494740000,-500.0,0.00040198,31]
[426509692,1782494740000,-500.0,0.00040198,31]
[426509694,1782494740000,-500.0,0.00040198,31]
[426509684,1782494740000,-500.0,0.00040198,31]
[426509690,1782494740000,-500.0,0.00040198,31]
[426509683,1782494740000,-375.91255512,0.00040198,31]
[426509685,1782494740000,-500.0,0.00040198,31]
[426509688,1782494740000,-446.81966648,0.00040198,31]
[426509699,1782494740000,-60415.63439274,0.00040199,120]
[426509687,1782494740000,-500.0,0.00040198,31]
[426509689,1782494740000,-500.0,0.00040198,31]
[426509686,1782494740000,-500.0,0.00040198,31]
[426509705,1782494818000,-4659.7234357,0.00040199,120]
[426509704,1782494818000,-445.0,0.00039645,2]
[426509702,1782494818000,-1000.0,0.00038817,2]
[426509703,1782494818000,-186.0,0.00039645,2]
[426509701,1782494818000,-160.0,0.00038808,2]
[426509706,1782494830000,-23928.275385,0.00040199,120]
[426509707,1782494853000,-897.0,0.000397,2]
[426509708,1782494853000,-148589.345973,0.00040199,120]
[426509760,1782495031000,-343.63091851,0.00040085,2]
[426509765,1782495031000,-759.34641322,0.00040099,120]
[426509763,1782495031000,-976.18427456,0.00040099,120]
[426509897,1782495038000,-8456.12445903,0.00040199,120]
[426509894,1782495038000,-500.0,0.00040199,54]
[426509890,1782495038000,-1884.50682508,0.00040099,28]
[426509892,1782495038000,-1971.92,0.00040099,120]
[426509888,1782495038000,-13319.66462652,0.00040099,120]
[426509879,1782495038000,-1420.0,0.00039645,2]
[426509881,1782495038000,-4580.0,0.00040099,120]
[426509963,1782495041000,-4242.68992554,0.00040199,120]
[426509961,1782495041000,-5716.42564564,0.00040199,120]
[426509959,1782495041000,-81853.35945254,0.00040199,120]
[426510062,1782495043000,-716.74704841,0.00040199,120]
[426510137,1782495046000,-2658.697265,0.00040199,120]
[426510136,1782495046000,-16609.593997,0.00040199,120]
[426510140,1782495047000,-11855.32913,0.00040199,120]
[426510141,1782495047000,-3847.32357134,0.00040199,120]
[426510145,1782495072000,158.3,0.00019178,2]
[426510147,1782495128000,-158.61,0.00028818,2]
[426510149,1782495145000,-158.61,0.00028818,2]
[426510194,1782495162000,1777.58,0.00029172,30]
[426510298,1782495498000,417.15472785,0.00029184,30]
[426510313,1782495991000,160.0,0.00029192,30]
[426510314,1782496152000,-155.83658482,0.00022863,5]
[426510316,1782496206000,3012.08478288,0.00020146,2]
[426510317,1782496222000,118.63304628,0.00022863,5]
[426510410,1782496232000,-158.61,0.00028818,2]
[426510415,1782496232000,-439.31423422,0.00034368,2]
[426510407,1782496232000,-158.61,0.00028818,2]
[426510402,1782496232000,-158.61,0.00028818,2]
[426510405,1782496232000,-158.61,0.00028818,2]
[426510404,1782496232000,-158.61,0.00028818,2]
[426510398,1782496232000,-158.61,0.00028818,2]
[426510390,1782496232000,-158.61,0.00028818,2]
[426510394,1782496232000,-158.61,0.00028818,2]
[426510396,1782496232000,-158.61,0.00028818,2]
[426510392,1782496232000,-158.61,0.00028818,2]
[426510386,1782496232000,-2922.44356728,0.00022863,5]
[426510388,1782496232000,-158.61,0.00028818,2]
[426510383,1782496232000,-740.42427126,0.00022634,2]
[426510414,1782496232000,-325.08711468,0.00030524,2]
[426510400,1782496232000,-158.61,0.00028818,2]
[426510412,1782496232000,-158.73,0.00028818,2]
[426510423,1782496232000,-670.85073774,0.00038284,2]
[426510417,1782496232000,-183.939474,0.00038024,2]
[426510450,1782496232000,-71.98424523,0.00040099,30]
[426510444,1782496232000,-161.51472951,0.00040097,120]
[426510446,1782496232000,-500.0,0.00040098,30]
[426510425,1782496232000,-1323.33947498,0.00039024,2]
[426510433,1782496232000,-750.0,0.00039088,2]
[426510441,1782496232000,-483.31860948,0.0004,12]
[426510437,1782496232000,-1843.0,0.00039514,2]
[426510439,1782496232000,-300.0,0.00039984,68]
[426510435,1782496232000,-1420.0,0.00039514,2]
[426510431,1782496232000,-1000.0,0.00039088,2]
[426510429,1782496232000,-1000.0,0.00039088,2]
[426510448,1782496232000,-500.0,0.00040098,30]
[426510427,1782496232000,-1000.0,0.00039088,2]
[426510421,1782496232000,-1000.0,0.00038153,30]
[426510419,1782496232000,-1378.0136339,0.00038151,2]
[426510443,1782496232000,-161.51472951,0.00040097,120]
[426510692,1782496238000,-1577.53,0.00039,30]
[426510702,1782496238000,-500.0,0.00040099,30]
[426510699,1782496238000,-500.0,0.00040099,2]
[426510706,1782496238000,-23217.21027204,0.000401,120]
[426510697,1782496238000,-380.26951157,0.00040099,30]
[426510695,1782496238000,-1648.94347198,0.0004,2]
[426510708,1782496238000,-20214.52151259,0.000401,120]
[426510703,1782496238000,-36073.25701645,0.000401,120]
[426510812,1782496240000,-1320.74446141,0.000401,120]
[426510813,1782496240000,-68458.85407323,0.000401,120]
[426510811,1782496240000,-547.66936007,0.000401,120]
[426510837,1782496243000,-265863.38241548,0.000401,120]
[426510839,1782496243000,-14378.83259446,0.000401,120]
[426510835,1782496243000,-186.0,0.00039515,2]
[426511268,1782496246000,-772.41556636,0.000401,120]
[426511270,1782496247000,-3885.5793194,0.000401,120]
[426511269,1782496247000,-186191.03103076,0.000401,120]
[426511272,1782496651000,760.0,0.00029192,30]
[426511273,1782496658000,3539.49550778,7.6e-05,2]
[426511274,1782496665000,798.95725772,0.00012,2]
[426511277,1782496728000,500.0,0.00030137,30]
[426511284,1782496979000,561.67837039,0.0002922,30]
[426511285,1782497029000,223.47,0.000301,120]
[426511286,1782497061000,150.0,0.00028,120]
[426511287,1782497317000,417.15472785,0.00029221,30]
[426511288,1782497368000,-5000.0,0.00025973,2]
[426511290,1782497368000,-702.95489311,0.000265,2]
[426511289,1782497368000,-2254.42927774,0.00026235,2]
[426511291,1782497423000,263.0,0.00030137,30]
[426511310,1782497432000,-1297.04510689,0.000265,2]
[426511311,1782497432000,-2000.0,0.00027,2]
[426511315,1782497432000,-85.35393559,0.00027683,27]
[426511312,1782497432000,-1014.45458678,0.000275,2]
[426511314,1782497432000,-410.50036016,0.000275,2]
[426511313,1782497432000,-575.04505306,0.000275,2]
[426511317,1782497432000,-369.22657625,0.000278,2]
[426511316,1782497432000,-414.64606441,0.00027683,27]
[426511356,1782497438000,-389.05085838,0.000278,2]
[426511346,1782497438000,-534.70222562,0.000278,2]
[426511418,1782497440000,-151.12,0.00028818,2]
[426511419,1782497440000,-151.12,0.00028818,2]
[426511416,1782497440000,-151.12,0.00028818,2]
[426511417,1782497440000,-151.12,0.00028818,2]
[426511415,1782497440000,-151.12,0.00028818,2]
[426511414,1782497440000,-151.12,0.00028818,2]
[426511411,1782497440000,-151.12,0.00028818,2]
[426511410,1782497440000,-2000.0,0.000278,2]
[426511420,1782497440000,-16.19923825,0.00028818,2]